bitfinex-derivatives/quotes_BTCF0:USTF0_20241010
["timestamp","ask_amount","ask_price","bid_price","bid_amount"]
[1728529808560,0.0114,60879.0,60878.0,0.082209]
[1728529808860,0.082204,60882.0,60878.0,0.082209]
[1728529808861,0.082204,60882.0,60881.0,0.082205]
[1728529809464,0.1116791,60882.0,60881.0,0.082205]
[1728529810769,0.0294751,60882.0,60881.0,0.082205]
[1728529810966,0.01386416,60887.0,60881.0,0.13570142]
[1728529811157,0.01386416,60887.0,60885.0,0.082199]
[1728529811358,0.00246416,60887.0,60885.0,0.082199]
[1728529811662,0.0321507,60887.0,60885.0,0.082199]
[1728529811967,0.11,60886.0,60885.0,0.082199]
[1728529812367,0.11,60886.0,60885.0,0.16908864]
[1728529812559,0.11,60886.0,60885.0,0.17008864]
[1728529812754,0.11,60886.0,60885.0,0.1700598]
[1728529813665,0.03046416,60887.0,60885.0,0.1710598]
[1728529813867,0.03046416,60887.0,60886.0,0.1690588]
[1728529814565,0.01646416,60887.0,60886.0,0.1690588]
[1728529814958,0.014,60887.0,60886.0,1.28747841]
[1728529815359,0.0114,60891.0,60890.0,0.082193]
[1728529815568,0.1214,60896.0,60892.0,0.08219]
[1728529815960,0.02966546,60893.0,60892.0,0.25067884]
[1728529816166,0.1214,60896.0,60895.0,0.082186]
[1728529816369,0.11,60896.0,60895.0,0.082186]
[1728529817168,0.11,60896.0,60895.0,0.14768945]
[1728529818170,0.15376868,60896.0,60895.0,0.083186]
[1728529818475,0.0114,60899.0,60895.0,0.49364]
[1728529818684,0.0024639,60900.0,60899.0,0.082181]
[1728529818975,0.0024639,60900.0,60899.0,0.16837223]
[1728529819666,0.0024639,60900.0,60899.0,0.25016161]
[1728529819864,0.0024639,60900.0,60899.0,0.25116161]
[1728529819865,0.0144639,60900.0,60899.0,0.25116161]
[1728529820167,0.0144639,60900.0,60899.0,0.083181]
[1728529821469,0.0234639,60900.0,60899.0,0.194181]
[1728529821878,0.0154639,60900.0,60899.0,0.194181]
[1728529823074,0.0154639,60900.0,60899.0,0.554981]
[1728529824175,0.0154639,60900.0,60899.0,0.62030515]
[1728529827572,0.0154639,60900.0,60899.0,0.4728]
[1728529827970,0.0154639,60900.0,60899.0,0.554981]
[1728529828178,0.0154639,60900.0,60899.0,0.444981]
[1728529829783,0.0154639,60900.0,60899.0,0.36276654]
[1728529830283,0.0154639,60900.0,60899.0,0.39396654]
[1728529831381,0.0114,60903.0,60902.0,0.082177]
[1728529831581,0.0114,60907.0,60906.0,0.082171]
[1728529831770,0.1138,60911.0,60906.0,0.3608]
[1728529831771,0.15054339,60911.0,60906.0,0.3608]
[1728529831973,0.15054339,60911.0,60910.0,0.082166]
[1728529831974,0.22130939,60911.0,60910.0,0.082166]
[1728529832473,0.28595512,60911.0,60910.0,0.082166]
[1728529834178,0.28695512,60911.0,60910.0,0.083166]
[1728529834590,0.28695512,60911.0,60910.0,0.084166]
[1728529834591,0.23130939,60911.0,60910.0,0.084166]
[1728529834980,0.23130939,60911.0,60910.0,0.13315687]
[1728529836285,0.23130939,60911.0,60910.0,0.084166]
[1728529836583,0.23130939,60911.0,60910.0,0.13317441]
[1728529837188,0.23130939,60911.0,60910.0,0.084166]
[1728529837376,0.14914339,60911.0,60910.0,0.084166]
[1728529837783,0.03914339,60911.0,60910.0,0.084166]
[1728529837981,0.14914339,60911.0,60910.0,0.084166]
[1728529839480,0.03914339,60911.0,60910.0,0.084166]
[1728529839790,0.03914339,60911.0,60910.0,0.14949015]
[1728529840175,0.03914339,60911.0,60910.0,0.084166]
[1728529840585,0.14914339,60911.0,60910.0,0.084166]
[1728529842992,0.14914339,60911.0,60910.0,0.13326973]
[1728529843188,0.23130739,60911.0,60910.0,0.084166]
[1728529843493,0.23130739,60911.0,60910.0,0.14963788]
[1728529844295,0.23130739,60911.0,60910.0,0.084166]
[1728529845889,0.23130739,60911.0,60910.0,0.14971764]
[1728529846497,0.23130739,60911.0,60910.0,0.084166]
[1728529849585,0.45740497,60911.0,60910.0,0.002]
[1728529850085,0.45740497,60911.0,60910.0,0.084166]
[1728529853091,0.62142886,60911.0,60910.0,0.084166]
[1728529853802,0.45740497,60911.0,60910.0,0.084166]
[1728529855589,0.62156269,60911.0,60910.0,0.084166]
[1728529855802,0.45740497,60911.0,60910.0,0.084166]
[1728529857099,0.34740497,60911.0,60910.0,0.084166]
[1728529857303,0.45740497,60911.0,60910.0,0.084166]
[1728529857506,0.45740497,60911.0,60910.0,0.02662047]
[1728529857802,0.14914339,60911.0,60910.0,0.1700046]
[1728529858202,0.14914339,60911.0,60910.0,0.27472487]
[1728529860507,0.03914339,60911.0,60910.0,0.27472487]
[1728529864502,0.03914339,60911.0,60910.0,0.27490072]
[1728529864705,0.11339663,60911.0,60910.0,0.082166]
[1728529864901,0.03914339,60911.0,60910.0,0.082166]
[1728529865102,0.37190311,60911.0,60910.0,0.082166]
[1728529866713,0.28735033,60911.0,60910.0,0.082166]
[1728529869409,0.28748287,60911.0,60910.0,0.082166]
[1728529870914,0.37211969,60911.0,60910.0,0.082166]
[1728529872709,0.14914339,60911.0,60910.0,0.27477146]
[1728529879000,0.14914339,60911.0,60910.0,0.27466293]
[1728529879718,0.37214632,60911.0,60910.0,0.082166]
[1728529880309,0.28750122,60911.0,60910.0,0.082166]
[1728529883800,0.14914339,60911.0,60910.0,0.082166]
[1728529884005,0.28751177,60911.0,60910.0,0.082166]
[1728529887519,0.28751177,60911.0,60910.0,0.02462139]
[1728529887715,0.14914339,60911.0,60910.0,0.18673427]
[1728529888713,0.14914339,60911.0,60910.0,0.08821372]
[1728529888915,0.14914339,60911.0,60910.0,0.27553836]
[1728529889320,0.14914339,60911.0,60910.0,0.17037972]
[1728529890011,0.14914339,60911.0,60910.0,0.27553794]
[1728529893614,0.01,60911.0,60910.0,0.27553794]
[1728529893828,0.01,60911.0,60910.0,0.30118595]
[1728529894124,0.01,60911.0,60910.0,1.06118595]
[1728529894727,0.0038,60918.0,60911.0,0.082164]
[1728529894927,0.0038,60918.0,60912.0,0.02565472]
[1728529894928,0.06385637,60917.0,60912.0,0.02565472]
[1728529895230,0.0038,60922.0,60911.0,0.574684]
[1728529895231,0.0038,60922.0,60921.0,0.082151]
[1728529895424,0.02387907,60922.0,60921.0,0.552951]
[1728529895726,0.02387907,60922.0,60921.0,0.442951]
[1728529895727,0.08451424,60922.0,60921.0,0.442951]
[1728529896028,0.00246283,60924.0,60922.0,0.08215]
[1728529896221,0.07936876,60923.0,60922.0,0.08215]
[1728529896829,0.18936876,60923.0,60922.0,0.08215]
[1728529898028,0.18926882,60923.0,60922.0,0.08215]
[1728529900231,0.07926882,60923.0,60922.0,0.08215]
[1728529902734,0.02603282,60924.0,60922.0,0.08215]
[1728529904030,0.02703282,60924.0,60922.0,0.08215]
[1728529904537,0.02803282,60924.0,60922.0,0.08215]
[1728529904931,0.02803282,60924.0,60921.0,0.3608]
[1728529904932,0.02803282,60924.0,60923.0,0.082148]
[1728529905637,0.00446283,60924.0,60923.0,0.192148]
[1728529906135,0.00446283,60924.0,60923.0,0.24122022]
[1728529906339,0.00446283,60924.0,60923.0,0.192148]
[1728529907231,0.00446283,60924.0,60923.0,0.24121091]
[1728529907740,0.00446283,60924.0,60923.0,0.192148]
[1728529908131,0.00446283,60924.0,60923.0,0.13120836]
[1728529910734,0.00446283,60924.0,60923.0,0.082148]
[1728529912027,0.00446283,60924.0,60923.0,0.21783015]
[1728529912428,0.002,60924.0,60923.0,0.21783015]
[1728529913242,0.002,60924.0,60923.0,0.28348886]
[1728529913542,0.002,60924.0,60923.0,0.21782955]
[1728529915143,0.002,60924.0,60923.0,0.28321711]
[1728529915638,0.002,60924.0,60923.0,0.21782955]
[1728529917145,0.002,60924.0,60923.0,0.552948]
[1728529917337,0.002,60924.0,60923.0,0.57862899]
[1728529917737,0.13312959,60924.0,60923.0,0.43892786]
[1728529917938,0.13312959,60924.0,60923.0,0.52107586]
[1728529918139,0.13312959,60924.0,60923.0,0.46862899]
[1728529918140,0.13205031,60924.0,60923.0,0.46862899]
[1728529918443,0.13205031,60924.0,60923.0,0.57862899]
[1728529920232,0.13205031,60924.0,60923.0,0.552948]
[1728529921738,0.24205031,60924.0,60923.0,0.442948]
[1728529922034,0.4717181,60924.0,60923.0,0.442948]
[1728529922239,0.40204384,60924.0,60923.0,0.442948]
[1728529922839,0.54960702,60924.0,60923.0,0.442948]
[1728529923347,0.40204384,60924.0,60923.0,0.442948]
[1728529924041,0.29204384,60924.0,60923.0,0.442948]
[1728529924242,0.20989684,60924.0,60923.0,0.442948]
[1728529924547,0.22607877,60924.0,60923.0,0.442948]
[1728529924734,0.16589946,60924.0,60923.0,0.56995485]
[1728529925046,0.002,60924.0,60923.0,0.77111783]
[1728529926942,0.194147,60924.0,60923.0,0.77111783]
[1728529927147,0.194147,60924.0,60923.0,0.58764492]
[1728529927643,0.194147,60924.0,60923.0,0.56196298]
[1728529928440,0.194147,60924.0,60923.0,0.45257304]
[1728529928741,0.194147,60924.0,60923.0,0.09177304]
[1728529929956,0.194147,60924.0,60923.0,0.19012078]
[1728529930350,0.194147,60924.0,60923.0,0.09177304]
[1728529930749,0.194147,60924.0,60917.0,0.0114]
[1728529930750,0.082155,60918.0,60917.0,0.0114]
[1728529931049,0.192155,60918.0,60917.0,0.10827885]
[1728529931750,0.08216,60915.0,60913.0,0.082161]
[1728529931952,0.08216,60915.0,60914.0,0.13398794]
[1728529932158,0.08216,60915.0,60914.0,0.10830048]
[1728529932750,0.08216,60915.0,60913.0,0.082161]
[1728529932953,0.3921,60922.0,60911.0,0.3608]
[1728529932954,0.082163,60912.0,60911.0,0.3608]
[1728529933151,0.082163,60912.0,60911.0,0.42633289]
[1728529933450,0.082163,60912.0,60911.0,0.3608]
[1728529934745,0.082163,60912.0,60911.0,0.40991753]
[1728529934942,0.192163,60912.0,60911.0,0.40991753]
[1728529935656,0.192163,60912.0,60911.0,0.41191753]
[1728529935854,0.192163,60912.0,60911.0,0.002]
[1728529936357,0.192163,60912.0,60911.0,0.004]
[1728529939748,0.25181748,60912.0,60911.0,0.004]
[1728529940254,0.27586934,60912.0,60911.0,0.004]
[1728529940657,0.47639537,60912.0,60908.0,0.0114]
[1728529940856,0.22458737,60909.0,60908.0,0.082169]
[1728529941055,0.28424143,60909.0,60908.0,0.10785925]
[1728529941862,0.28424143,60909.0,60908.0,0.10985925]
[1728529942059,0.28424143,60909.0,60908.0,0.11485925]
[1728529942357,0.28424143,60909.0,60908.0,0.089169]
[1728529942662,0.28424143,60909.0,60908.0,0.092169]
[1728529942956,0.05965448,60909.0,60908.0,0.092169]
[1728529945560,0.05965448,60909.0,60908.0,0.124369]
[1728529946057,0.11456417,60914.0,60913.0,0.082162]
[1728529946259,0.05930757,60914.0,60913.0,0.082162]
[1728529946456,0.17387174,60914.0,60913.0,0.082162]
[1728529946868,0.24263276,60914.0,60913.0,0.552962]
[1728529947158,0.05930757,60914.0,60913.0,0.552962]
[1728529947863,0.11,60920.0,60919.0,0.082154]
[1728529948052,0.11,60920.0,60919.0,0.17327403]
[1728529948656,0.13411792,60920.0,60919.0,0.17327403]
[1728529948851,0.13411792,60920.0,60919.0,0.173207]
[1728529949251,0.13711792,60920.0,60919.0,0.173207]
[1728529949668,0.14011792,60920.0,60919.0,0.173207]
[1728529949967,0.13711792,60920.0,60919.0,0.173207]
[1728529950559,0.113,60920.0,60919.0,0.173207]
[1728529951060,0.113,60920.0,60919.0,0.29707354]
[1728529951061,0.003,60920.0,60919.0,0.29707354]
[1728529951252,0.11,60923.0,60921.0,0.08215]
[1728529951253,0.192148,60923.0,60921.0,0.08215]
[1728529951453,0.082148,60923.0,60922.0,0.17287352]
[1728529951650,0.082148,60923.0,60922.0,0.091053]
[1728529952167,0.10527969,60923.0,60922.0,0.091053]
[1728529952367,0.10727969,60923.0,60922.0,0.091053]
[1728529952760,0.10927969,60923.0,60922.0,0.091053]
[1728529953272,0.21927969,60923.0,60922.0,0.091053]
[1728529953768,0.21927969,60923.0,60922.0,0.09116455]
[1728529954963,0.42662697,60923.0,60918.0,0.06185503]
[1728529955270,0.11,60920.0,60918.0,0.06185503]
[1728529955467,0.12864459,60919.0,60918.0,0.14401003]
[1728529955667,0.12864459,60919.0,60918.0,0.16969578]
[1728529957171,0.12864459,60919.0,60918.0,0.14401003]
[1728529957872,0.12864459,60919.0,60918.0,0.14601003]
[1728529958471,0.12864459,60919.0,60918.0,0.14801003]
[1728529961771,0.20641335,60919.0,60918.0,0.14801003]
[1728529961979,0.12864459,60919.0,60918.0,0.14801003]
[1728529962873,0.274305,60920.0,60918.0,0.23986739]
[1728529963181,0.274305,60920.0,60919.0,0.09185736]
[1728529963376,0.274305,60920.0,60919.0,0.09187922]
[1728529963877,0.192152,60920.0,60919.0,0.17403322]
[1728529965371,0.192152,60920.0,60919.0,0.17503322]
[1728529965579,0.192152,60920.0,60919.0,0.17603322]
[1728529969883,0.192152,60920.0,60919.0,0.084154]
[1728529969884,0.31921968,60920.0,60919.0,0.084154]
[1728529971479,0.3970044,60920.0,60919.0,0.084154]
[1728529971683,0.54453475,60920.0,60919.0,0.084154]
[1728529973582,0.3970044,60920.0,60919.0,0.084154]
[1728529974787,0.3970044,60920.0,60919.0,0.02537002]
[1728529975092,0.3970044,60920.0,60919.0,0.084154]
[1728529975093,0.56125752,60920.0,60919.0,0.084154]
[1728529975289,0.3970044,60920.0,60919.0,0.084154]
[1728529975687,0.56125752,60920.0,60919.0,0.084154]
[1728529975890,0.3970044,60920.0,60919.0,0.084154]
[1728529976792,0.56125752,60920.0,60919.0,0.084154]
[1728529978094,0.56125752,60920.0,60919.0,0.41348954]
[1728529978095,0.192152,60920.0,60919.0,0.41348954]
[1728529983496,0.192152,60920.0,60919.0,0.41018954]
[1728529984994,0.192152,60920.0,60919.0,0.080854]
[1728529985193,0.34005989,60920.0,60919.0,0.080854]
[1728529985400,0.54389974,60920.0,60919.0,0.080854]
[1728529986397,0.5437512,60920.0,60919.0,0.080854]
[1728529986701,0.39584331,60920.0,60919.0,0.080854]
[1728529989394,0.39584331,60920.0,60915.0,0.442958]
[1728529989395,0.082156,60917.0,60915.0,0.442958]
[1728529989596,0.23637631,60916.0,60915.0,0.442958]
[1728529989796,0.36786159,60916.0,60915.0,0.46864456]
[1728529990599,0.23637631,60916.0,60915.0,0.11084456]
[1728529990997,0.36786192,60916.0,60915.0,0.11584456]
[1728529991195,0.36794156,60916.0,60915.0,0.11584456]
[1728529992207,0.36794156,60916.0,60915.0,0.11284456]
[1728529992408,0.36794156,60916.0,60915.0,0.11684456]
[1728529993002,0.11,60916.0,60915.0,0.44743907]
[1728529993400,0.11,60916.0,60915.0,0.44743886]
[1728529994702,0.11,60916.0,60915.0,0.57884715]
[1728529995101,0.13358785,60916.0,60915.0,0.57884715]
[1728529996107,0.13358785,60916.0,60915.0,0.57892722]
[1728529997209,0.13358785,60916.0,60915.0,0.57892736]
[1728529999614,0.11,60916.0,60915.0,0.57892736]
[1728530000112,0.11,60916.0,60915.0,0.31954284]
[1728530000813,0.11,60916.0,60915.0,0.20138286]
[1728530001006,0.11,60916.0,60915.0,0.31954445]
[1728530003405,0.1330645,60916.0,60915.0,0.31954445]
[1728530003908,0.11,60916.0,60915.0,0.43452627]
[1728530004309,0.11,60916.0,60915.0,0.31954445]
[1728530004511,0.11,60916.0,60915.0,0.43452627]
[1728530004701,0.11,60916.0,60915.0,0.56252574]
[1728530004905,0.11,60916.0,60915.0,0.43452627]
[1728530006217,0.00246266,60925.0,60924.0,0.082147]
[1728530006408,0.3608,60939.0,60933.0,0.082135]
[1728530006409,0.0038,60934.0,60933.0,0.082135]
[1728530006711,0.11,60936.0,60935.0,0.082132]
[1728530006919,0.11,60936.0,60935.0,0.27272647]
[1728530007211,0.11,60936.0,60935.0,0.1741999]
[1728530007512,0.11,60938.0,60935.0,0.0920679]
[1728530007710,0.11,60938.0,60937.0,0.082129]
[1728530007907,0.11,60938.0,60937.0,0.1741969]
[1728530008106,0.18763407,60938.0,60937.0,0.082129]
[1728530008412,0.18763407,60938.0,60935.0,0.001]
[1728530008413,0.004,60936.0,60935.0,0.001]
[1728530008609,0.24519412,60936.0,60935.0,0.001]
[1728530008806,0.23689786,60936.0,60931.0,0.3608]
[1728530009007,0.11479483,60932.0,60931.0,0.3608]
[1728530009209,0.05872055,60932.0,60931.0,0.3608]
[1728530009617,0.05872055,60932.0,60931.0,0.38409912]
[1728530009919,0.05872055,60932.0,60931.0,0.49291511]
[1728530010424,0.11479483,60934.0,60933.0,0.082135]
[1728530010803,0.17297198,60934.0,60933.0,0.082135]
[1728530011818,0.17297198,60934.0,60933.0,0.083135]
[1728530012220,0.05817715,60934.0,60933.0,0.083135]
[1728530012418,0.05817715,60934.0,60933.0,0.084135]
[1728530012618,0.12568764,60934.0,60933.0,0.084135]
[1728530013422,0.05817715,60934.0,60933.0,0.084135]
[1728530015013,0.11,60936.0,60933.0,0.002]
[1728530015219,0.11,60936.0,60935.0,0.082132]
[1728530017622,0.11,60936.0,60935.0,0.083132]
[1728530018515,0.11,60936.0,60935.0,0.084132]
[1728530030122,0.11,60936.0,60930.0,0.082138]
[1728530030123,0.49229456,60936.0,60930.0,0.082138]
[1728530030327,0.20186828,60935.0,60934.0,0.082133]
[1728530030528,0.31186828,60935.0,60934.0,0.082133]
[1728530031124,0.49229456,60935.0,60934.0,0.082133]
[1728530031621,0.49229456,60935.0,60934.0,0.083133]
[1728530032031,0.58151438,60935.0,60934.0,0.083133]
[1728530032234,0.4010881,60935.0,60934.0,0.083133]
[1728530033326,0.4020881,60935.0,60934.0,0.084133]
[1728530033833,0.31286828,60935.0,60934.0,0.084133]
[1728530034529,0.25283994,60935.0,60934.0,0.084133]
[1728530034734,0.30996113,60935.0,60934.0,0.084133]
[1728530035335,0.39935578,60935.0,60934.0,0.084133]
[1728530035537,0.41493359,60935.0,60934.0,0.084133]
[1728530035833,0.49045315,60935.0,60934.0,0.084133]
[1728530036533,0.39963423,60935.0,60934.0,0.084133]
[1728530038134,0.111,60935.0,60934.0,0.53826869]
[1728530039543,0.111,60935.0,60934.0,0.52698597]
[1728530045135,0.111,60935.0,60934.0,0.53824819]
[1728530047843,0.111,60935.0,60934.0,0.53823749]
[1728530048038,0.111,60935.0,60934.0,0.6494528]
[1728530053251,0.111,60935.0,60934.0,0.90993794]
[1728530057251,0.111,60935.0,60934.0,0.77852965]
[1728530058452,0.111,60935.0,60934.0,0.6494528]
[1728530058643,0.1426,60935.0,60934.0,0.6494528]
[1728530059648,0.001,60935.0,60934.0,0.76433785]
[1728530059847,0.001,60935.0,60934.0,0.89353924]
[1728530060256,0.001,60935.0,60934.0,0.53823749]
[1728530062352,0.001,60935.0,60934.0,0.53828673]
[1728530063060,0.111,60935.0,60934.0,0.53828673]
[1728530063448,0.111,60935.0,60934.0,0.63674199]
[1728530064660,0.111,60935.0,60934.0,0.27594199]
[1728530068154,0.001,60935.0,60934.0,0.54906696]
[1728530068767,0.001,60935.0,60934.0,0.41765867]
[1728530068949,0.111,60935.0,60934.0,0.41765867]
[1728530069465,0.111,60935.0,60934.0,0.54887318]
[1728530071063,0.111,60935.0,60934.0,0.90967318]
[1728530071954,0.111,60935.0,60934.0,0.77845867]
[1728530072261,0.111,60935.0,60934.0,0.90967318]
[1728530074065,0.111,60935.0,60934.0,0.54887318]
[1728530074257,0.111,60935.0,60934.0,0.90967318]
[1728530074753,0.111,60935.0,60934.0,0.77845867]
[1728530075156,0.111,60935.0,60934.0,0.64942358]
[1728530076866,0.111,60935.0,60934.0,0.64918179]
[1728530077057,0.111,60935.0,60934.0,0.76397967]
[1728530077650,0.001,60935.0,60934.0,0.76397967]
[1728530078155,0.111,60935.0,60934.0,0.78965748]
[1728530082357,0.111,60935.0,60934.0,0.6748596]
[1728530083261,0.111,60935.0,60934.0,0.80382173]
[1728530086664,0.111,60935.0,60934.0,0.8038409]
[1728530087066,0.111,60935.0,60934.0,0.80384089]
[1728530090779,0.111,60935.0,60934.0,0.64919784]
[1728530091078,0.111,60935.0,60934.0,0.67487566]
[1728530094076,0.111,60935.0,60934.0,0.78968441]
[1728530094276,0.111,60935.0,60934.0,0.76400659]
[1728530094470,0.111,60935.0,60934.0,0.78968441]
[1728530095574,0.111,60935.0,60934.0,0.9187466]
[1728530096576,0.111,60935.0,60934.0,0.91892189]
[1728530097382,0.001,60935.0,60934.0,0.80411314]
[1728530097681,0.001,60935.0,60934.0,0.77843532]
[1728530097979,0.001,60935.0,60934.0,0.80411314]
[1728530098280,0.001,60935.0,60934.0,0.78990932]
[1728530098583,0.001,60935.0,60934.0,0.91904241]
[1728530098786,0.001,60935.0,60934.0,0.78990932]
[1728530099080,0.001,60935.0,60934.0,0.91903885]
[1728530100577,0.001,60935.0,60934.0,0.93536178]
[1728530100779,0.001,60935.0,60934.0,0.90987633]
[1728530101085,0.001,60935.0,60934.0,0.93555415]
[1728530101285,0.001,60935.0,60934.0,0.80436443]
[1728530102474,0.001,60935.0,60934.0,0.95144806]
[1728530103669,0.001,60935.0,60934.0,0.92577024]
[1728530104075,0.001,60935.0,60934.0,0.95144804]
[1728530104681,0.001,60935.0,60934.0,0.80436441]
[1728530105377,0.001,60935.0,60934.0,0.95137612]
[1728530105779,0.001,60935.0,60934.0,0.59057612]
[1728530105977,0.001,60935.0,60934.0,0.95137612]
[1728530106179,0.001,60935.0,60934.0,0.80431387]
[1728530107185,0.001,60935.0,60934.0,0.77863607]
[1728530107377,0.001,60935.0,60934.0,0.80431379]
[1728530107870,0.001,60935.0,60934.0,0.95136256]
[1728530108284,0.001,60935.0,60934.0,0.57477197]
[1728530108587,0.001,60935.0,60934.0,0.93557197]
[1728530110381,0.001,60935.0,60934.0,0.67516549]
[1728530114291,0.001,60935.0,60934.0,0.67516492]
[1728530114491,0.001,60935.0,60934.0,0.6750153]
[1728530116182,0.0038,60943.0,60942.0,0.082123]
[1728530116386,0.11,60946.0,60945.0,0.082118]
[1728530116695,0.11,60946.0,60945.0,0.17537015]
[1728530116696,0.192117,60946.0,60945.0,0.17537015]
[1728530117787,0.192117,60946.0,60945.0,0.09425215]
[1728530117994,0.193117,60946.0,60945.0,0.09425215]
[1728530119494,0.193117,60946.0,60945.0,0.09525215]
[1728530120384,0.193117,60946.0,60945.0,0.002]
[1728530122599,0.193117,60946.0,60945.0,0.084119]
[1728530125597,0.193117,60946.0,60945.0,0.17723739]
[1728530127414,0.193117,60946.0,60945.0,0.28822344]
[1728530127901,0.193117,60946.0,60945.0,0.17723739]
[1728530131108,0.001,60946.0,60945.0,0.648846]
[1728530131496,0.001,60946.0,60945.0,0.67452056]
[1728530132207,0.001,60946.0,60945.0,0.70365053]
[1728530133301,0.001,60946.0,60945.0,0.34285053]
[1728530133496,0.001,60946.0,60945.0,0.70365053]
[1728530135208,0.001,60946.0,60945.0,0.34285053]
[1728530135410,0.001,60946.0,60945.0,0.13892353]
[1728530135603,0.001,60946.0,60945.0,0.49972353]
[1728530136907,0.001,60946.0,60945.0,0.59262353]
[1728530139109,0.111,60946.0,60945.0,0.59262353]
[1728530141408,0.111,60946.0,60945.0,0.59262189]
[1728530142315,0.111,60946.0,60945.0,0.7958857]
[1728530143017,0.001,60946.0,60945.0,0.7958857]
[1728530143212,0.0309,60961.0,60954.0,0.082107]
[1728530143414,0.192106,60955.0,60954.0,0.28521699]
[1728530144629,0.193106,60955.0,60954.0,0.28621699]
[1728530145036,0.193106,60955.0,60954.0,0.17583846]
[1728530145335,0.193106,60955.0,60954.0,0.27402931]
[1728530145939,0.193106,60955.0,60954.0,0.17583846]
[1728530146736,0.193106,60955.0,60954.0,0.17683846]
[1728530147432,0.193106,60955.0,60954.0,0.27502964]
[1728530150034,0.193106,60955.0,60954.0,0.19292264]
[1728530150431,0.193106,60955.0,60954.0,0.002]
[1728530152540,1.285266,60955.0,60949.0,0.0114]
[1728530152741,0.082112,60950.0,60949.0,0.0114]
[1728530152941,0.082112,60950.0,60948.0,0.3608]
[1728530152942,0.082113,60949.0,60948.0,0.3608]
[1728530153942,0.192113,60949.0,60948.0,0.3608]
[1728530155039,0.192113,60949.0,60948.0,0.3618]
[1728530155246,0.193113,60949.0,60948.0,0.3628]
[1728530155945,0.193113,60949.0,60948.0,0.002]
[1728530156145,0.193113,60949.0,60948.0,0.3628]
[1728530156445,0.193113,60949.0,60948.0,0.002]
[1728530157543,0.193113,60949.0,60948.0,0.20560206]
[1728530158937,0.193113,60949.0,60948.0,0.28771706]
[1728530159136,0.193113,60949.0,60948.0,0.40256168]
[1728530159441,0.193113,60949.0,60948.0,0.28771706]
[1728530161140,0.111,60949.0,60948.0,0.28771706]
[1728530161941,0.111,60949.0,60948.0,0.38141706]
[1728530162237,0.001,60949.0,60948.0,0.38141706]
[1728530162447,0.001,60949.0,60948.0,0.40708985]
[1728530162642,0.001,60949.0,60948.0,0.52193447]
[1728530162847,0.001,60949.0,60948.0,0.65047698]
[1728530163146,0.111,60949.0,60948.0,0.53563236]
[1728530163339,0.111,60949.0,60948.0,0.65031618]
[1728530164245,0.111,60949.0,60948.0,0.53563236]
[1728530165443,0.111,60949.0,60948.0,0.33193584]
[1728530165645,0.111,60949.0,60948.0,0.20348779]
[1728530167643,0.111,60949.0,60948.0,0.177815]
[1728530167839,0.111,60949.0,60948.0,0.20348594]
[1728530171247,0.111,60949.0,60948.0,0.177815]
[1728530171449,0.111,60949.0,60948.0,0.20348594]
[1728530172440,0.111,60949.0,60948.0,0.40675311]
[1728530175239,0.111,60949.0,60948.0,0.40676593]
[1728530177251,0.111,60949.0,60948.0,0.76756593]
[1728530177946,0.111,60949.0,60948.0,0.38109499]
[1728530178149,0.111,60949.0,60948.0,0.74189499]
[1728530178347,0.111,60949.0,60948.0,0.76756592]
[1728530178753,0.111,60949.0,60948.0,0.67386592]
[1728530180048,0.111,60949.0,60948.0,0.67388886]
[1728530181349,0.111,60949.0,60948.0,0.64821793]
[1728530181552,0.111,60949.0,60948.0,0.6738894]
[1728530181751,0.111,60949.0,60948.0,0.64821793]
[1728530181948,0.111,60949.0,60948.0,0.67388936]
[1728530184247,0.111,60949.0,60948.0,0.93355418]
[1728530185049,0.111,60949.0,60948.0,0.93355421]
[1728530186155,0.111,60949.0,60948.0,0.57275421]
[1728530186452,0.111,60949.0,60948.0,0.93355421]
[1728530187356,0.001,60949.0,60948.0,0.93355421]
[1728530187550,0.001,60949.0,60948.0,0.56333577]
[1728530188351,0.001,60949.0,60948.0,0.53766431]
[1728530188549,0.001,60949.0,60948.0,0.56333564]
[1728530189756,0.001,60949.0,60948.0,0.67333564]
[1728530189956,0.001,60949.0,60948.0,0.77166182]
[1728530192153,0.001,60949.0,60948.0,0.67333564]
[1728530192559,0.001,60949.0,60948.0,0.66169338]
[1728530192751,0.001,60949.0,60948.0,0.56333564]
[1728530192950,0.001,60949.0,60948.0,0.66169338]
[1728530193159,0.001,60949.0,60948.0,0.56333564]
[1728530193548,0.001,60949.0,60948.0,0.66169338]
[1728530194254,0.001,60949.0,60948.0,0.66170667]
[1728530195557,0.001,60949.0,60948.0,0.80227185]
[1728530196254,0.001,60949.0,60948.0,0.44147185]
[1728530196564,0.001,60949.0,60948.0,0.80227185]
[1728530197458,0.001,60949.0,60948.0,0.94844645]
[1728530198051,0.083113,60949.0,60948.0,0.72017473]
[1728530198259,0.083113,60949.0,60948.0,0.3337034]
[1728530198462,0.083113,60949.0,60948.0,0.44852432]
[1728530198654,0.083113,60949.0,60948.0,0.20532148]
[1728530198655,0.114813,60949.0,60948.0,0.20532148]
[1728530199664,0.607013,60949.0,60948.0,0.20532148]
[1728530199864,0.082119,60945.0,60944.0,0.0114]
[1728530200069,0.082119,60945.0,60943.0,0.3608]
[1728530200070,0.08212,60944.0,60943.0,0.3608]
[1728530202158,0.08612,60944.0,60943.0,0.3608]
[1728530202865,0.08612,60944.0,60943.0,0.442921]
[1728530203664,0.004,60944.0,60943.0,0.442921]
[1728530203863,0.004,60944.0,60943.0,0.46859616]
[1728530204659,0.004,60944.0,60943.0,0.7099448]
[1728530205164,0.004,60944.0,60943.0,0.46859616]
[1728530205860,0.089705,60955.0,60951.0,0.082111]
[1728530206055,0.089705,60955.0,60951.0,0.442911]
[1728530206056,0.11,60952.0,60951.0,0.442911]
[1728530206564,0.11,60952.0,60951.0,0.46858206]
[1728530208366,0.11,60952.0,60951.0,0.46958206]
[1728530208767,0.11,60952.0,60951.0,0.47058206]